Department Family,Entity,Date,Expense Type,Expense Area,Supplier,Transaction Number,Amount,Description,Supplier Postcode,Supplier Type,Expenditure Type,
DWP,ILF,01/04/2014,Other Prepayments,Central,Data Voice & Video Sol,146164,3900,Engineer work for Government Secure Internet, SK1 3TZ,,Administrative,2470
DWP,ILF,01/04/2014,Other Prepayments,Central,Desk Top Publishing Group,146248,13212.12,Proactive Support Service, LS10 1RJ,,Administrative,2470
DWP,ILF,01/04/2014,Other Prepayments,Central,Hewlett Packard,146326,1280.4,IT software and support,BD23 9AX,,Administrative,2470
DWP,ILF,01/04/2014,Other Prepayments,Central,Towergate Risk Solutions,146335,2267.64,Business insurance, NG2 1RR,,Administrative,2470
DWP,ILF,02/04/2014,Other Prepayments,Central,Phoneix,146421,48942.55,IT Technical Support Service,WF17 9LU,,Administrative,2470
DWP,ILF,30/04/2014,Other Prepayments,Central,Phoneix,147249,13315.2,IT Technical Support Service,WF17 9LU,,Administrative,2470
DWP,ILF,03/04/2014,Staff Wellbeing,Human Resources,The Wellbeing Centre,146669,854,Counselling service, NG2 6AX.,,Administrative,4120
DWP,ILF,07/04/2014,Independent Assessor visits,Social Work,Independent Assessor Costs,146687,759.25,Assessment of social care needs and recommendation of ILF funding contribution,0,,Programme,4215
DWP,ILF,07/04/2014,Independent Assessor visits,Social Work,Independent Assessor Costs,146688,1047.8,Assessment of social care needs and recommendation of ILF funding contribution,0,,Programme,4215
DWP,ILF,07/04/2014,Independent Assessor visits,Social Work,Independent Assessor Costs,146689,2558.25,Assessment of social care needs and recommendation of ILF funding contribution,0,,Programme,4215
DWP,ILF,07/04/2014,Independent Assessor visits,Social Work,Independent Assessor Costs,146690,566.05,Assessment of social care needs and recommendation of ILF funding contribution,0,,Programme,4215
DWP,ILF,07/04/2014,Independent Assessor visits,Social Work,Independent Assessor Costs,146691,1589.75,Assessment of social care needs and recommendation of ILF funding contribution,0,,Programme,4215
DWP,ILF,07/04/2014,Independent Assessor visits,Social Work,Independent Assessor Costs,146692,1243.35,Assessment of social care needs and recommendation of ILF funding contribution,0,,Programme,4215
DWP,ILF,07/04/2014,Independent Assessor visits,Social Work,Independent Assessor Costs,146693,1605.9,Assessment of social care needs and recommendation of ILF funding contribution,0,,Programme,4215
DWP,ILF,07/04/2014,Independent Assessor visits,Social Work,Independent Assessor Costs,146694,2016,Assessment of social care needs and recommendation of ILF funding contribution,0,,Programme,4215
DWP,ILF,07/04/2014,Independent Assessor visits,Social Work,Independent Assessor Costs,146695,1926,Assessment of social care needs and recommendation of ILF funding contribution,0,,Programme,4215
DWP,ILF,07/04/2014,Independent Assessor visits,Social Work,Independent Assessor Costs,146696,2349.45,Assessment of social care needs and recommendation of ILF funding contribution,0,,Programme,4215
DWP,ILF,07/04/2014,Independent Assessor visits,Social Work,Independent Assessor Costs,146696,600.5,Assessment of social care needs and recommendation of ILF funding contribution,0,,Programme,4215
DWP,ILF,07/04/2014,Independent Assessor visits,Social Work,Independent Assessor Costs,146697,1957.05,Assessment of social care needs and recommendation of ILF funding contribution,0,,Programme,4215
DWP,ILF,07/04/2014,Independent Assessor visits,Social Work,Independent Assessor Costs,146698,1824.3,Assessment of social care needs and recommendation of ILF funding contribution,0,,Programme,4215
DWP,ILF,07/04/2014,Independent Assessor visits,Social Work,Independent Assessor Costs,146699,1120.5,Assessment of social care needs and recommendation of ILF funding contribution,0,,Programme,4215
DWP,ILF,07/04/2014,Independent Assessor visits,Social Work,Independent Assessor Costs,146700,1127.25,Assessment of social care needs and recommendation of ILF funding contribution,0,,Programme,4215
DWP,ILF,07/04/2014,Independent Assessor visits,Social Work,Independent Assessor Costs,146701,852.3,Assessment of social care needs and recommendation of ILF funding contribution,0,,Programme,4215
DWP,ILF,07/04/2014,Independent Assessor visits,Social Work,Independent Assessor Costs,146702,1652.4,Assessment of social care needs and recommendation of ILF funding contribution,0,,Programme,4215
DWP,ILF,07/04/2014,Independent Assessor visits,Social Work,Independent Assessor Costs,146703,1986.75,Assessment of social care needs and recommendation of ILF funding contribution,0,,Programme,4215
DWP,ILF,07/04/2014,Independent Assessor visits,Social Work,Independent Assessor Costs,146704,1830.15,Assessment of social care needs and recommendation of ILF funding contribution,0,,Programme,4215
DWP,ILF,07/04/2014,Independent Assessor visits,Social Work,Independent Assessor Costs,146705,523.8,Assessment of social care needs and recommendation of ILF funding contribution,0,,Programme,4215
DWP,ILF,07/04/2014,Independent Assessor visits,Social Work,Independent Assessor Costs,146706,1062,Assessment of social care needs and recommendation of ILF funding contribution,0,,Programme,4215
DWP,ILF,07/04/2014,Independent Assessor visits,Social Work,Independent Assessor Costs,146707,2320.2,Assessment of social care needs and recommendation of ILF funding contribution,0,,Programme,4215
DWP,ILF,07/04/2014,Independent Assessor visits,Social Work,Independent Assessor Costs,146707,635.7,Assessment of social care needs and recommendation of ILF funding contribution,0,,Programme,4215
DWP,ILF,07/04/2014,Independent Assessor visits,Social Work,Independent Assessor Costs,146708,2005.43,Assessment of social care needs and recommendation of ILF funding contribution,0,,Programme,4215
DWP,ILF,07/04/2014,Independent Assessor visits,Social Work,Independent Assessor Costs,146709,932.85,Assessment of social care needs and recommendation of ILF funding contribution,0,,Programme,4215
DWP,ILF,07/04/2014,Independent Assessor visits,Social Work,Independent Assessor Costs,146709,2167.05,Assessment of social care needs and recommendation of ILF funding contribution,0,,Programme,4215
DWP,ILF,07/04/2014,Independent Assessor visits,Social Work,Independent Assessor Costs,146711,2601,Assessment of social care needs and recommendation of ILF funding contribution,0,,Programme,4215
DWP,ILF,07/04/2014,Independent Assessor visits,Social Work,Independent Assessor Costs,146712,2055.15,Assessment of social care needs and recommendation of ILF funding contribution,0,,Programme,4215
DWP,ILF,07/04/2014,Independent Assessor visits,Social Work,Independent Assessor Costs,146713,1409.4,Assessment of social care needs and recommendation of ILF funding contribution,0,,Programme,4215
DWP,ILF,07/04/2014,Independent Assessor visits,Social Work,Independent Assessor Costs,146714,1996.65,Assessment of social care needs and recommendation of ILF funding contribution,0,,Programme,4215
DWP,ILF,07/04/2014,Independent Assessor visits,Social Work,Independent Assessor Costs,146715,2307,Assessment of social care needs and recommendation of ILF funding contribution,0,,Programme,4215
DWP,ILF,07/04/2014,Independent Assessor visits,Social Work,Philippa Peers Buxton,146717,817.5,Assessment of social care needs and recommendation of ILF funding contribution,0,,Programme,4215
DWP,ILF,07/04/2014,Independent Assessor visits,Social Work,Philippa Peers Buxton,146717,1383.75,Assessment of social care needs and recommendation of ILF funding contribution,0,,Programme,4215
DWP,ILF,07/04/2014,Independent Assessor visits,Social Work,Philippa Peers Buxton,146717,1366.65,Assessment of social care needs and recommendation of ILF funding contribution,0,,Programme,4215
DWP,ILF,07/04/2014,Independent Assessor visits,Social Work,Independent Assessor Costs,146718,577.8,Assessment of social care needs and recommendation of ILF funding contribution,0,,Programme,4215
DWP,ILF,07/04/2014,Independent Assessor visits,Social Work,Independent Assessor Costs,146719,947.7,Assessment of social care needs and recommendation of ILF funding contribution,0,,Programme,4215
DWP,ILF,07/04/2014,Independent Assessor visits,Social Work,Independent Assessor Costs,146720,540.45,Assessment of social care needs and recommendation of ILF funding contribution,0,,Programme,4215
DWP,ILF,07/04/2014,Independent Assessor visits,Social Work,Independent Assessor Costs,146721,1282.95,Assessment of social care needs and recommendation of ILF funding contribution,0,,Programme,4215
DWP,ILF,07/04/2014,Independent Assessor visits,Social Work,Independent Assessor Costs,146722,2299.8,Assessment of social care needs and recommendation of ILF funding contribution,0,,Programme,4215
DWP,ILF,07/04/2014,Independent Assessor visits,Social Work,Independent Assessor Costs,146723,1916.1,Assessment of social care needs and recommendation of ILF funding contribution,0,,Programme,4215
DWP,ILF,07/04/2014,Independent Assessor visits,Social Work,Independent Assessor Costs,146724,1049.25,Assessment of social care needs and recommendation of ILF funding contribution,0,,Programme,4215
DWP,ILF,14/04/2014,Independent Assessor visits,Social Work,Independent Assessor Costs,146891,2537.55,Assessment of social care needs and recommendation of ILF funding contribution,0,,Programme,4215
DWP,ILF,14/04/2014,Independent Assessor visits,Social Work,Independent Assessor Costs,146892,2407.5,Assessment of social care needs and recommendation of ILF funding contribution,0,,Programme,4215
DWP,ILF,14/04/2014,Independent Assessor visits,Social Work,Independent Assessor Costs,146893,1939.5,Assessment of social care needs and recommendation of ILF funding contribution,0,,Programme,4215
DWP,ILF,14/04/2014,Independent Assessor visits,Social Work,Independent Assessor Costs,146895,845.1,Assessment of social care needs and recommendation of ILF funding contribution,0,,Programme,4215
DWP,ILF,14/04/2014,Independent Assessor visits,Social Work,Independent Assessor Costs,146897,1562.1,Assessment of social care needs and recommendation of ILF funding contribution,0,,Programme,4215
DWP,ILF,14/04/2014,Independent Assessor visits,Social Work,Independent Assessor Costs,146898,1614.15,Assessment of social care needs and recommendation of ILF funding contribution,0,,Programme,4215
DWP,ILF,14/04/2014,Independent Assessor visits,Social Work,Independent Assessor Costs,146899,2443.5,Assessment of social care needs and recommendation of ILF funding contribution,0,,Programme,4215
DWP,ILF,14/04/2014,Independent Assessor visits,Social Work,Independent Assessor Costs,146900,1391.4,Assessment of social care needs and recommendation of ILF funding contribution,0,,Programme,4215
DWP,ILF,14/04/2014,Independent Assessor visits,Social Work,Independent Assessor Costs,146901,1227.6,Assessment of social care needs and recommendation of ILF funding contribution,0,,Programme,4215
DWP,ILF,14/04/2014,Independent Assessor visits,Social Work,Independent Assessor Costs,146902,1310.4,Assessment of social care needs and recommendation of ILF funding contribution,0,,Programme,4215
DWP,ILF,14/04/2014,Independent Assessor visits,Social Work,Independent Assessor Costs,146904,1378.35,Assessment of social care needs and recommendation of ILF funding contribution,0,,Programme,4215
DWP,ILF,14/04/2014,Independent Assessor visits,Social Work,Independent Assessor Costs,146905,1858.5,Assessment of social care needs and recommendation of ILF funding contribution,0,,Programme,4215
DWP,ILF,14/04/2014,Independent Assessor visits,Social Work,Independent Assessor Costs,146906,1746,Assessment of social care needs and recommendation of ILF funding contribution,0,,Programme,4215
DWP,ILF,14/04/2014,Independent Assessor visits,Social Work,Independent Assessor Costs,146907,1482.1,Assessment of social care needs and recommendation of ILF funding contribution,0,,Programme,4215
DWP,ILF,14/04/2014,Independent Assessor visits,Social Work,Independent Assessor Costs,146908,533.7,Assessment of social care needs and recommendation of ILF funding contribution,0,,Programme,4215
DWP,ILF,14/04/2014,Independent Assessor visits,Social Work,Independent Assessor Costs,146909,1065.6,Assessment of social care needs and recommendation of ILF funding contribution,0,,Programme,4215
DWP,ILF,14/04/2014,Independent Assessor visits,Social Work,Independent Assessor Costs,146910,706.5,Assessment of social care needs and recommendation of ILF funding contribution,0,,Programme,4215
DWP,ILF,14/04/2014,Independent Assessor visits,Social Work,Independent Assessor Costs,146911,1312.2,Assessment of social care needs and recommendation of ILF funding contribution,0,,Programme,4215
DWP,ILF,14/04/2014,Independent Assessor visits,Social Work,Independent Assessor Costs,146912,1689.92,Assessment of social care needs and recommendation of ILF funding contribution,0,,Programme,4215
DWP,ILF,14/04/2014,Independent Assessor visits,Social Work,Independent Assessor Costs,146913,1003.95,Assessment of social care needs and recommendation of ILF funding contribution,0,,Programme,4215
DWP,ILF,22/04/2014,Independent Assessor visits,Social Work,Independent Assessor Costs,147026,895.45,Assessment of social care needs and recommendation of ILF funding contribution,0,,Programme,4215
DWP,ILF,22/04/2014,Independent Assessor visits,Social Work,Independent Assessor Costs,147027,684.45,Assessment of social care needs and recommendation of ILF funding contribution,0,,Programme,4215
DWP,ILF,22/04/2014,Independent Assessor visits,Social Work,Independent Assessor Costs,147028,1071.45,Assessment of social care needs and recommendation of ILF funding contribution,0,,Programme,4215
DWP,ILF,22/04/2014,Independent Assessor visits,Social Work,Independent Assessor Costs,147029,1710.45,Assessment of social care needs and recommendation of ILF funding contribution,0,,Programme,4215
DWP,ILF,22/04/2014,Independent Assessor visits,Social Work,Independent Assessor Costs,147030,1562.05,Assessment of social care needs and recommendation of ILF funding contribution,0,,Programme,4215
DWP,ILF,22/04/2014,Independent Assessor visits,Social Work,Independent Assessor Costs,147031,2370.05,Assessment of social care needs and recommendation of ILF funding contribution,0,,Programme,4215
DWP,ILF,22/04/2014,Independent Assessor visits,Social Work,Independent Assessor Costs,147032,683.1,Assessment of social care needs and recommendation of ILF funding contribution,0,,Programme,4215
DWP,ILF,22/04/2014,Independent Assessor visits,Social Work,Independent Assessor Costs,147033,2225.7,Assessment of social care needs and recommendation of ILF funding contribution,0,,Programme,4215
DWP,ILF,22/04/2014,Independent Assessor visits,Social Work,Independent Assessor Costs,147034,754.2,Assessment of social care needs and recommendation of ILF funding contribution,0,,Programme,4215
DWP,ILF,28/04/2014,Independent Assessor visits,Social Work,Independent Assessor Costs,147130,2079.6,Assessment of social care needs and recommendation of ILF funding contribution,0,,Programme,4215
DWP,ILF,28/04/2014,Independent Assessor visits,Social Work,Independent Assessor Costs,147131,1385.55,Assessment of social care needs and recommendation of ILF funding contribution,0,,Programme,4215
DWP,ILF,28/04/2014,Independent Assessor visits,Social Work,Independent Assessor Costs,147132,1516.5,Assessment of social care needs and recommendation of ILF funding contribution,0,,Programme,4215
DWP,ILF,28/04/2014,Independent Assessor visits,Social Work,Independent Assessor Costs,147133,1588.5,Assessment of social care needs and recommendation of ILF funding contribution,0,,Programme,4215
DWP,ILF,28/04/2014,Independent Assessor visits,Social Work,Independent Assessor Costs,147134,1470.15,Assessment of social care needs and recommendation of ILF funding contribution,0,,Programme,4215
DWP,ILF,28/04/2014,Independent Assessor visits,Social Work,Independent Assessor Costs,147135,967.6,Assessment of social care needs and recommendation of ILF funding contribution,0,,Programme,4215
DWP,ILF,28/04/2014,Independent Assessor visits,Social Work,Independent Assessor Costs,147136,2305.95,Assessment of social care needs and recommendation of ILF funding contribution,0,,Programme,4215
DWP,ILF,28/04/2014,Independent Assessor visits,Social Work,Independent Assessor Costs,147137,1316.2,Assessment of social care needs and recommendation of ILF funding contribution,0,,Programme,4215
DWP,ILF,28/04/2014,Independent Assessor visits,Social Work,Independent Assessor Costs,147138,2398.05,Assessment of social care needs and recommendation of ILF funding contribution,0,,Programme,4215
DWP,ILF,28/04/2014,Independent Assessor visits,Social Work,Independent Assessor Costs,147139,1760.4,Assessment of social care needs and recommendation of ILF funding contribution,0,,Programme,4215
DWP,ILF,28/04/2014,Independent Assessor visits,Social Work,Independent Assessor Costs,147140,1333.8,Assessment of social care needs and recommendation of ILF funding contribution,0,,Programme,4215
DWP,ILF,28/04/2014,Independent Assessor visits,Social Work,Independent Assessor Costs,147141,953.02,Assessment of social care needs and recommendation of ILF funding contribution,0,,Programme,4215
DWP,ILF,28/04/2014,Independent Assessor visits,Social Work,Independent Assessor Costs,147143,1135.35,Assessment of social care needs and recommendation of ILF funding contribution,0,,Programme,4215
DWP,ILF,28/04/2014,Independent Assessor visits,Social Work,Independent Assessor Costs,147143,832.95,Assessment of social care needs and recommendation of ILF funding contribution,0,,Programme,4215
DWP,ILF,28/04/2014,Independent Assessor visits,Social Work,Independent Assessor Costs,147144,693.45,Assessment of social care needs and recommendation of ILF funding contribution,0,,Programme,4215
DWP,ILF,07/04/2014,Other Independent Assessor Claims,Social Work,Tillie Devlin,146710,860.96,Assessment of social care needs and recommendation of ILF funding contribution,0,,Programme,4225
DWP,ILF,02/04/2014,Trustee Expenses,Corporate Affairs,Public Chairs Forum,146571,1500,Business subscription iro Trustee,SW1Y 5AA,,Administrative,4350
DWP,ILF,17/04/2014,Additional Facilities,Facilities,TNT UK Ltd,147020,2976.25,Courier service, BL4 9AR,,Administrative,4420
DWP,ILF,23/04/2014,Additional Facilities,Facilities,Nottingham City Council,147093,1194.6,Rates , NG1 2DE,,Administrative,4420
DWP,ILF,09/04/2014,Utilities,Facilities,DWP,146819,3505.22,Business subscription iro Grant Recovery, FY5 3TA,,Administrative,4430
DWP,ILF,14/04/2014,Rates,Facilities,DWP,146965,-23698.33,Business subscription iro Grant Recovery, FY5 3TA,,Administrative,4440
DWP,ILF,15/04/2014,Rates,Facilities,Nottingham City Council,146971,7105,Rates , NG1 2DE,,Administrative,4440
DWP,ILF,08/04/2014,Phone Charges,Facilities,BT Conferencing,146786,798.82,Telephone conference calls, NW9 6LB,,Administrative,4450
DWP,ILF,28/04/2014,Postage,Facilities,Royal Mail,147127,8740.79,Postal services, PE4 5PG,,Administrative,4510
DWP,ILF,03/04/2014,Printing Services,Facilities,Williams Lea,146660,1108.56,Office Printing,W1F8PR,,Administrative,4560
DWP,ILF,03/04/2014,Printing Services,Facilities,Williams Lea,146663,1108.56,Office Printing,W1F8PR,,Administrative,4560
DWP,ILF,10/04/2014,Stationery & Supplies,Facilities,Banner Business Services,146864,526.77,Stationary and Supplies,NR3 1QU,,Administrative,4580
DWP,ILF,10/04/2014,Stationery & Supplies,Facilities,Banner Business Services,146866,550.72,Stationary and Supplies,NR3 1QU,,Administrative,4580
DWP,ILF,17/04/2014,Stationery & Supplies,Facilities,Ricoh UK Ltd,147018,1020.08,Service Charge for Printing Equipment, TW13 7HG,,Administrative,4580
DWP,ILF,08/04/2014,Business Subscriptions,Corporate Affairs,Ace,146795,595,Payment for a yearly subscription for a member of staff, WF8 1WT,,Administrative,4590
DWP,ILF,28/04/2014,Internal Audit Services,Information & Governance,Pricewaterhouse Coopers LLP,147163,13488.25,Internal Audit Provision,E14 9SQ,,Administrative,4620
DWP,ILF,01/04/2014,Printing & Literature ,Communications,Capita Transaction Interpreting,146333,1147.85,Printing service,OL3 5FZ,,Administrative,4765
DWP,ILF,03/04/2014,Printing & Literature ,Communications,Williams Lea,146656,607.31,Office Printing,W1F8PR,,Administrative,4765
DWP,ILF,03/04/2014,Printing & Literature ,Communications,Williams Lea,146657,1323.62,Office Printing,W1F8PR,,Administrative,4765
DWP,ILF,03/04/2014,Printing & Literature ,Communications,Williams Lea,146658,2433.61,Office Printing,W1F8PR,,Administrative,4765
DWP,ILF,03/04/2014,Printing & Literature ,Communications,Williams Lea,146659,672,Office Printing,W1F8PR,,Administrative,4765
DWP,ILF,23/04/2014,Stakeholder Engagement,Corporate Affairs,User Expenses,147058,800,"Travel, Subsitence or general expenses incurred by users in attending ILF business",0,,Administrative,4775
DWP,ILF,24/04/2014,Stakeholder Engagement,Corporate Affairs,User Expenses,147108,845.5,"Travel, Subsitence or general expenses incurred by users in attending ILF business",0,,Administrative,4775
DWP,ILF,24/04/2014,Technical IT Support,Information & Governance,Phoneix,147121,2040,IT Technical Support Service,WF17 9LU,,Administrative,4810
DWP,ILF,01/04/2014,Software Licensing,Human Resources,Ceridian Ltd,146334,1592.05,Payroll and HR services, E14 9GE,,Administrative,4820
DWP,ILF,03/04/2014,Software Licensing,Human Resources,Ceridian Ltd,146651,-1083.67,Payroll and HR services, E14 9GE,,Administrative,4820
DWP,ILF,04/04/2014,Software Services,Information & Governance,Dynamic Data Systems Ltd,146673,2600.4,Bespoke software development, NG16 1RL,,Administrative,4830
DWP,ILF,02/04/2014,Business Continuity,Information & Governance,Node4,146570,1410,Website services, DE24 8HZ,,Administrative,4840
DWP,ILF,10/04/2014,Business Continuity,Information & Governance,Vodafone,146863,1198.8,Telephone services,RG14 2FN,,Administrative,4840
DWP,ILF,01/04/2014,Information Security,Information & Governance,Data Voice & Video Sol,146164,1950,Engineer work for Government Secure Internet, SK1 3TZ,,Administrative,4850
DWP,ILF,02/04/2014,Website Services,Information & Governance,Node4,146570,540,Website services, DE24 8HZ,,Administrative,4860
DWP,ILF,03/04/2014,Website Services,Information & Governance,Vodafone,146664,10788.24,Telephone services,RG14 2FN,,Administrative,4860
DWP,ILF,16/04/2014,Misc IT Costs,Information & Governance,XMA Ltd,147001,1450.98,Printer Toner Cartidges,NG11 7EP,,Administrative,4880
DWP,ILF,08/04/2014,Legal Costs,Payment Security,Shakespeares,146799,891.8,"Provision of Legal Service iro debt recovery, human resource, procurement or organisational litigation",0,,Administrative,4910
DWP,ILF,08/04/2014,Legal Costs,Payment Security,Shakespeares,146801,774,"Provision of Legal Service iro debt recovery, human resource, procurement or organisational litigation",0,,Administrative,4910
DWP,ILF,10/04/2014,Legal Costs,Payment Security,McWhinney Richards,146870,1547,Legal Services,ML60LW,,Administrative,4910
DWP,ILF,08/04/2014,General T&S ,Corporate Affairs,Redfern Travel Ltd,146787,524.97,Travel and Accomodation bookings,BD1 3AZ,,Administrative,4970
DWP,ILF,08/04/2014,General T&S ,Social Work,Redfern Travel Ltd,146787,1734.18,Travel and Accomodation bookings,BD1 3AZ,,Administrative,4970
